fUSD/lending_fUSD_20250110
["ID","MTS","AMOUNT","RATE_DAILY","PERIOD"]
[348457201,1736536233592,-500.0,9.997e-05,2]
[348457202,1736536233602,-500.0,9.997e-05,2]
[348457203,1736536233612,-333.92482826,9.997e-05,2]
[348457204,1736536233631,-166.07517174,9.997e-05,2]
[348457205,1736536233642,-192.2784107,9.997e-05,2]
[348457206,1736536233678,-307.7215893,9.997e-05,2]
[348457207,1736536233689,-500.0,9.997e-05,2]
[348457208,1736536233698,-500.0,9.997e-05,2]
[348457209,1736536233709,-500.0,9.997e-05,2]
[348457210,1736536233719,-500.0,9.997e-05,2]
[348457211,1736536233729,-500.0,9.997e-05,2]
[348457212,1736536233739,-500.0,9.997e-05,2]
[348457213,1736536233749,-517.17581537,9.997e-05,2]
[348457214,1736536233760,-500.0,9.997e-05,2]
[348457215,1736536233771,-500.0,9.997e-05,2]
[348457216,1736536233781,-500.0,9.997e-05,2]
[348457217,1736536233791,-192.50763727,9.997e-05,2]
[348457218,1736536233802,-500.0,9.997e-05,2]
[348457219,1736536233811,-500.0,9.997e-05,2]
[348457220,1736536233822,-500.0,9.997e-05,2]
[348457221,1736536233831,-500.0,9.997e-05,2]
[348457222,1736536233842,-500.0,9.997e-05,2]
[348457223,1736536233851,-500.0,9.997e-05,2]
[348457224,1736536233862,-500.0,9.997e-05,2]
[348457225,1736536233875,-500.0,9.997e-05,2]
[348457226,1736536233885,-500.0,9.997e-05,2]
[348457227,1736536233896,-500.0,9.997e-05,2]
[348457228,1736536233907,-500.0,9.997e-05,2]
[348457229,1736536233918,-500.0,9.997e-05,2]
[348457230,1736536233931,-500.0,9.997e-05,2]
[348457231,1736536233943,-500.0,9.997e-05,2]
[348457232,1736536233954,-500.0,9.997e-05,2]
[348457233,1736536233965,-500.0,9.997e-05,2]
[348457234,1736536233976,-500.0,9.997e-05,2]
[348457235,1736536233987,-500.0,9.997e-05,2]
[348457236,1736536233997,-500.0,9.997e-05,2]
[348457237,1736536234007,-500.0,9.997e-05,2]
[348457238,1736536234017,-500.0,9.997e-05,2]
[348457239,1736536234028,-500.0,9.997e-05,2]
[348457240,1736536234039,-500.0,9.997e-05,2]
[348457241,1736536234051,-540.81,9.997e-05,2]
[348457242,1736536234062,-484.02,9.997e-05,2]
[348457243,1736536234072,-500.0,9.997e-05,2]
[348457244,1736536234083,-500.0,9.997e-05,2]
[348457245,1736536234094,-500.0,9.997e-05,2]
[348457246,1736536234104,-500.0,9.997e-05,2]
[348457247,1736536234114,-500.0,9.997e-05,2]
[348457248,1736536234124,-500.0,9.997e-05,2]
[348457249,1736536234134,-500.0,9.997e-05,2]
[348457250,1736536234145,-500.0,9.997e-05,2]
[348457251,1736536234156,-500.0,9.997e-05,2]
[348457252,1736536234166,-500.0,9.997e-05,2]
[348457253,1736536234181,-500.0,9.997e-05,2]
[348457254,1736536234193,-500.0,9.997e-05,2]
[348457255,1736536234204,-500.0,9.997e-05,2]
[348457256,1736536234218,-500.0,9.997e-05,2]
[348457257,1736536234229,-500.0,9.997e-05,2]
[348457258,1736536234240,-1173.1,9.997e-05,2]
[348457259,1736536234251,-500.0,9.997e-05,2]
[348457260,1736536234262,-576.37,9.997e-05,2]
[348457261,1736536234272,-1577.87,9.997e-05,2]
[348457262,1736536234494,-1250.96,9.997e-05,2]
[348457263,1736536234505,-186.56298102,9.997e-05,2]
[348457264,1736536234515,-500.0,9.997e-05,2]
[348457265,1736536234525,-657.05,9.997e-05,2]
[348457266,1736536234535,-1641.58,9.997e-05,2]
[348457267,1736536234546,-564.07674655,9.997e-05,2]
[348457268,1736536234556,-586.45,9.997e-05,2]
[348457269,1736536234566,-500.0,9.998e-05,2]
[348457270,1736536234576,-500.0,9.998e-05,2]
[348457271,1736536234586,-614.22,9.998e-05,2]
[348457272,1736536234596,-500.0,9.998e-05,2]
[348457273,1736536234607,-625.03,9.998e-05,2]
[348457274,1736536234617,-500.0,9.998e-05,2]
[348457275,1736536234627,-1230.47,9.998e-05,2]
[348457276,1736536234638,-513.13,9.998e-05,2]
[348457277,1736536234648,-795.4,9.998e-05,2]
[348457278,1736536234658,-581.82,9.998e-05,2]
[348457279,1736536234669,-500.0,9.998e-05,2]
[348457280,1736536234681,-500.0,9.998e-05,2]
[348457281,1736536234690,-684.65,9.998e-05,2]
[348457282,1736536234700,-845.22,0.0001,2]
[348457283,1736536234709,-176.51,0.0001,2]
[348457284,1736536234718,-500.0,0.00010097,2]
[348457285,1736536234728,-500.0,0.00010097,2]
[348457286,1736536234737,-500.0,0.00010097,2]
[348457287,1736536234746,-500.0,0.00010097,2]
[348457288,1736536234756,-5401.75748297,0.00010106,4]
[348457289,1736536234770,-3787.18085563,0.00010106,4]
[348457290,1736536234780,-1200.10578437,0.00010106,4]
[348457291,1736536234793,-2827.22827245,0.00010106,4]
[348457292,1736536234803,-381.55,0.00010137,2]
[348457293,1736536234813,-564.13,0.00010137,2]
[348457294,1736536234823,-4002.7916,0.00010171,2]
[348457295,1736536234833,-500.0,0.00010247,2]
[348457296,1736536234843,-500.0,0.00010247,2]
[348457297,1736536234853,-500.0,0.00010247,2]
[348457298,1736536234863,-500.0,0.00010247,2]
[348457299,1736536234872,-500.0,0.00010247,2]
[348457300,1736536234882,-500.0,0.00010247,2]
[348457301,1736536234892,-983.81,0.00010247,2]
[348457302,1736536234902,-1855.37,0.00010247,2]
[348457303,1736536234912,-130.38438123,0.00010247,2]
[348457304,1736536234924,-369.61561877,0.00010247,2]
[348457305,1736536234935,-492.62554703,0.00010249,2]
[348457306,1736536234945,-500.0,0.00010249,2]
[348457307,1736536234955,-620.77589128,0.00010249,2]
[348457310,1736536238420,-500.0,0.0001,2]
[348457311,1736536238434,-260.7,0.0001,2]
[348457312,1736536238444,-107.92410872,0.00010249,2]
[348457313,1736536238455,-500.0,0.00010249,2]
[348457314,1736536238465,-131.37589128,0.00010249,2]
[348457315,1736536238476,-435.66410872,0.00010249,2]
[348457316,1736536238486,-500.0,0.00010249,2]
[348457317,1736536238496,-500.0,0.00010249,2]
[348457318,1736536238506,-500.0,0.00010249,2]
[348457319,1736536238516,-500.0,0.00010249,2]
[348457320,1736536238525,-840.32,0.00010249,2]
[348457321,1736536238535,-677.1,0.00010269,2]
[348457322,1736536238544,-718.47,0.00010269,2]
[348457323,1736536238554,-980.53,0.00010269,2]
[348457324,1736536238564,-500.0,0.00010269,2]
[348457325,1736536238573,-540.74,0.00010269,2]
[348457326,1736536238583,-367.98118626,0.00010269,2]
[348457327,1736536238593,-500.0,0.00010269,2]
[348457329,1736536238603,-1004.97,0.00010269,2]
[348457331,1736536238612,-504.91,0.00010269,2]
[348457333,1736536238622,-196.6,0.00010269,2]
[348457335,1736536238631,-500.0,0.00010269,2]
[348457337,1736536238641,-500.0,0.00010269,2]
[348457339,1736536238650,-500.0,0.00010269,2]
[348457341,1736536238660,-469.48310846,0.00010269,2]
[348457346,1736536238702,-500.0,9.973e-05,2]
[348457349,1736536238713,-30.51689154,0.00010269,2]
[348457351,1736536238722,-500.0,0.00010269,2]
[348457352,1736536238732,-231.8167828,0.00010269,2]
[348457354,1736536238741,-500.0,0.00010269,2]
[348457356,1736536238751,-500.0,0.00010269,2]
[348457359,1736536238761,-500.0,0.00010269,2]
[348457361,1736536238770,-500.0,0.00010269,2]
[348457363,1736536238779,-500.0,0.0001027,2]
[348457366,1736536238788,-500.0,0.0001027,2]
[348457369,1736536238799,-500.0,0.0001027,2]
[348457372,1736536238809,-500.0,0.0001027,2]
[348457375,1736536238819,-500.0,0.0001027,2]
[348457378,1736536238828,-500.0,0.0001027,2]
[348457380,1736536238838,-177.48,0.0001027,2]
[348457382,1736536238847,-500.0,0.0001027,2]
[348457384,1736536238856,-500.0,0.0001027,2]
[348457386,1736536238866,-500.0,0.0001027,2]
[348457388,1736536238876,-500.0,0.0001027,2]
[348457390,1736536238885,-500.0,0.0001027,2]
[348457392,1736536238895,-500.0,0.0001027,2]
[348457394,1736536238905,-500.0,0.0001027,2]
[348457396,1736536238915,-500.0,0.0001027,2]
[348457398,1736536238925,-500.0,0.0001027,2]
[348457400,1736536238934,-500.0,0.0001027,2]
[348457402,1736536238944,-500.0,0.0001027,2]
[348457404,1736536238954,-500.0,0.0001027,2]
[348457406,1736536238964,-500.0,0.0001027,2]
[348457408,1736536238974,-500.0,0.0001027,2]
[348457410,1736536238983,-500.0,0.0001027,2]
[348457413,1736536238993,-500.0,0.0001027,2]
[348457415,1736536239003,-500.0,0.0001027,2]
[348457417,1736536239013,-500.0,0.0001027,2]
[348457419,1736536239023,-500.0,0.0001027,2]
[348457420,1736536239033,-500.0,0.0001027,2]
[348457422,1736536239043,-164.40495557,0.0001027,2]
[348457425,1736536239053,-500.0,0.0001027,2]
[348457426,1736536239062,-500.0,0.0001027,2]
[348457428,1736536239071,-613.75,0.0001027,2]
[348457431,1736536239081,-631.27502541,0.0001027,2]
[348457433,1736536239094,-271.56497459,0.0001027,2]
[348457435,1736536239103,-500.0,0.0001027,2]
[348457437,1736536239112,-1251.83,0.0001027,2]
[348457439,1736536239122,-500.0,0.0001027,2]
[348457440,1736536239131,-500.0,0.0001027,2]
[348457442,1736536239140,-820.56,0.0001027,2]
[348457445,1736536239150,-500.0,0.0001027,2]
[348457446,1736536239160,-500.0,0.0001027,2]
[348457448,1736536239170,-301.106586,0.0001027,2]
[348457450,1736536239180,-500.0,0.0001027,2]
[348457452,1736536239190,-500.0,0.0001027,2]
[348457454,1736536239199,-928.4,0.0001027,2]
[348457456,1736536239209,-571.3,0.0001027,2]
[348457458,1736536239218,-371.820981,0.0001027,2]
[348457460,1736536239227,-948.06,0.0001027,2]
[348457462,1736536239236,-473.09467296,0.0001027,2]
[348457465,1736536239255,-695.62532704,0.0001027,2]
[348457467,1736536239264,-500.0,0.0001027,2]
[348457469,1736536239273,-500.0,0.0001027,2]
[348457471,1736536239283,-500.0,0.0001027,2]
[348457473,1736536239293,-500.0,0.0001027,2]
[348457475,1736536239303,-500.0,0.0001027,2]
[348457477,1736536239312,-626.0,0.0001027,2]
[348457479,1736536239322,-886.93,0.0001027,2]
[348457481,1736536239332,-500.0,0.0001027,2]
[348457483,1736536239341,-564.09,0.0001027,2]
[348457485,1736536239352,-6316.05507153,0.0001027,2]
[348457583,1736536240315,-178.95789889,0.0001017,2]
[348457585,1736536240325,-13780.13857769,0.0001027,2]
[348457586,1736536240336,-4736.3938,0.0001027,2]
[348457587,1736536240347,-280.93115927,0.0001027,2]
[348457588,1736536240362,-450.07,0.0001027,2]
[348457589,1736536240374,-457.9467728,0.0001027,2]
[348457597,1736536240523,-500.0,0.00010269,2]
[348457599,1736536240535,-448.985,0.0001027,2]
[348457602,1736536240547,-4496.38296764,0.0001027,2]
[348457604,1736536240559,-673.25,0.0001027,2]
[348457616,1736536240667,-985.07995557,0.0001027,2]
[348457618,1736536240679,-679.325,0.0001027,2]
[348457802,1736536243347,-500.0,9.997e-05,2]
[348457803,1736536243358,-35.899978,0.0001027,2]
[348457831,1736536246310,-500.0,0.00010247,2]
[348457832,1736536246321,-500.0,0.00010269,2]
[348457833,1736536246331,-500.0,0.00010269,2]
[348457834,1736536246342,-162.928749,0.0001027,2]
[348457835,1736536246353,-376.556241,0.0001027,2]
[348457836,1736536246381,-1667.52567794,0.0001027,2]
[348457837,1736536246431,-856.7137027,0.0001027,2]
[348457838,1736536246447,-26921.49579218,0.0001027,2]
[348457839,1736536246797,-500.0,9.945e-05,2]
[348457840,1736536246807,-2102.63901669,0.0001027,2]
[348457845,1736536338434,546.59,8.219e-05,2]
[348457854,1736537347227,561.36,8.219e-05,2]
[348457861,1736537431538,-250.0,9.315e-05,2]
[348457862,1736537431547,-250.0,9.318e-05,2]
[348457863,1736537431557,-558.41,9.351e-05,2]
[348457864,1736537431567,-292.09,9.367e-05,2]
[348457865,1736537431577,-150.0,9.899e-05,2]
[348457866,1736537431586,-6973.74248264,9.9e-05,2]
[348457867,1736537431603,-15304.95854207,9.9e-05,2]
[348457868,1736537431783,-436.0,9.9e-05,2]
[348457869,1736537431800,-50031.23827529,9.9e-05,2]
[348457870,1736537431813,-3600.0,9.9e-05,3]
[348457871,1736537431827,-500.0,9.918e-05,2]
[348457872,1736537431841,-669.57,9.997e-05,2]
[348457873,1736537431855,-501.35,9.997e-05,2]
[348457874,1736537431868,-500.0,9.997e-05,2]
[348457875,1736537431881,-500.0,9.997e-05,2]
[348457876,1736537431893,-1024.1,9.997e-05,2]
[348457877,1736537431904,-604.68,9.997e-05,2]
[348457878,1736537431916,-500.0,9.997e-05,2]
[348457879,1736537431929,-500.0,9.997e-05,2]
[348457880,1736537431942,-500.0,9.997e-05,2]
[348457881,1736537431955,-589.51,9.997e-05,2]
[348457882,1736537431968,-500.0,9.997e-05,2]
[348457883,1736537431980,-500.0,9.997e-05,2]
[348457884,1736537431993,-567.38,9.997e-05,2]
[348457885,1736537432007,-958.18,9.997e-05,2]
[348457886,1736537432019,-1016.29,9.997e-05,2]
[348457887,1736537432034,-1836.11,9.997e-05,2]
[348457889,1736537432048,-2165.62,9.997e-05,2]
[348457892,1736537432061,-500.0,9.997e-05,2]
[348457894,1736537432073,-500.0,9.997e-05,2]
[348457896,1736537432085,-500.0,9.998e-05,2]
[348457898,1736537432097,-500.0,9.998e-05,2]
[348457901,1736537432111,-972.23,9.998e-05,2]
[348457903,1736537432124,-500.0,9.998e-05,2]
[348457907,1736537432155,-500.0,9.998e-05,2]
[348457910,1736537432171,-753.01,9.998e-05,2]
[348457912,1736537432185,-500.0,9.998e-05,2]
[348457915,1736537432199,-593.76,9.998e-05,2]
[348457917,1736537432211,-500.0,9.998e-05,2]
[348457919,1736537432224,-518.71049393,9.998e-05,2]
[348457922,1736537432237,-1000.0,9.998e-05,2]
[348457924,1736537432256,-500.0,9.998e-05,2]
[348457927,1736537432270,-500.0,9.998e-05,2]
[348457929,1736537432284,-501.3263493,9.998e-05,2]
[348457932,1736537432297,-853.54,9.998e-05,2]
[348457934,1736537432310,-996.68,9.999e-05,2]
[348457936,1736537432321,-500.0,9.999e-05,2]
[348457938,1736537432333,-500.0,9.999e-05,2]
[348457941,1736537432346,-925.78,9.999e-05,2]
[348457943,1736537432358,-835.51,9.999e-05,2]
[348457945,1736537432374,-1366.37,9.999e-05,2]
[348457948,1736537432388,-500.0,9.999e-05,2]
[348457950,1736537432398,-1310.54,9.999e-05,2]
[348457952,1736537432409,-500.0,9.999e-05,2]
[348457954,1736537432421,-691.47,9.999e-05,2]
[348457956,1736537432432,-522.1,9.999e-05,2]
[348457959,1736537432444,-2014.11,9.999e-05,2]
[348457961,1736537432457,-450.06467264,9.999e-05,2]
[348457964,1736537432470,-500.0,9.999e-05,2]
[348457966,1736537432486,-500.0,9.999e-05,2]
[348457969,1736537432502,-691.09,9.999e-05,2]
[348457971,1736537432514,-545.13328385,9.999e-05,2]
[348457973,1736537432525,-500.0,9.999e-05,2]
[348457975,1736537432536,-509.97558534,9.999e-05,2]
[348457977,1736537432547,-653.03,9.999e-05,2]
[348457979,1736537432558,-500.0,9.999e-05,2]
[348457981,1736537432570,-1116.95,9.999e-05,2]
[348457984,1736537432583,-489.9895,9.999e-05,2]
[348457987,1736537432608,-684.63,0.0001,2]
[348457990,1736537432622,-649910.38373781,0.0001,2]
[348457992,1736537432635,-7200.0,0.0001,3]
[348457995,1736537432650,-211631.0,0.0001,2]
[348457997,1736537432664,-176.51,0.0001,2]
[348458000,1736537432678,-151.03412673,0.0001,2]
[348458002,1736537432692,-430.80381244,0.0001,2]
[348458005,1736537432708,-200.37027265,0.0001,2]
[348458007,1736537432721,-1003.52,0.00010009,2]
[348458009,1736537432736,-984.04,0.0001002,2]
[348458012,1736537432750,-200.37027247,0.00010036,2]
[348458014,1736537432764,-1017.71,0.00010042,2]
[348458016,1736537432776,-1004.93,0.00010064,2]
[348458019,1736537432789,-151.03412668,0.0001007,2]
[348458021,1736537432802,-10741.59156092,0.00010107,4]
[348458023,1736537432816,-982.01,0.00010114,2]
[348458026,1736537432829,-158.95,0.00010137,2]
[348458028,1736537432842,-118881.15522959,0.0001017,2]
[348458030,1736537432854,-10533.3818,0.0001017,2]
[348458033,1736537432867,-5000.0,0.0001017,2]
[348458035,1736537432880,-1000.0,0.00010171,2]
[348458037,1736537432892,-200.37027247,0.00010173,2]
[348458040,1736537432904,-151.03412668,0.0001024,2]
[348458041,1736537432916,-216.3430014,0.00010259,2]
[348458042,1736537432929,-550.29,0.00010269,2]
[348458043,1736537432941,-500.0,0.00010269,2]
[348458044,1736537432952,-500.0,0.00010269,2]
[348458045,1736537432964,-500.0,0.00010269,2]
[348458046,1736537432977,-500.0,0.00010269,2]
[348458047,1736537432990,-500.0,0.00010269,2]
[348458048,1736537433003,-500.0,0.00010269,2]
[348458049,1736537433015,-500.0,0.00010269,2]
[348458050,1736537433028,-500.0,0.00010269,2]
[348458051,1736537433041,-500.0,0.00010269,2]
[348458052,1736537433053,-500.0,0.00010269,2]
[348458053,1736537433066,-500.0,0.00010269,2]
[348458054,1736537433084,-500.0,0.00010269,2]
[348458055,1736537433098,-500.0,0.00010269,2]
[348458057,1736537433112,-352.39099956,0.00010269,2]
[348458059,1736537433126,-380.26805748,0.00010269,2]
[348458061,1736537433139,-500.0,0.00010269,2]
[348458064,1736537433152,-500.0,0.00010269,2]
[348458066,1736537433166,-500.0,0.00010269,2]
[348458068,1736537433179,-152.36700332,0.00010269,2]
[348458071,1736537433192,-500.0,0.00010269,2]
[348458073,1736537433204,-500.0,0.00010269,2]
[348458075,1736537433218,-500.0,0.00010269,2]
[348458077,1736537433230,-500.0,0.00010269,2]
[348458080,1736537433244,-500.0,0.00010269,2]
[348458082,1736537433256,-500.0,0.00010269,2]
[348458084,1736537433269,-500.0,0.00010269,2]
[348458087,1736537433283,-500.0,0.00010269,2]
[348458089,1736537433296,-531.92,0.00010269,2]
[348458091,1736537433308,-500.0,0.00010269,2]
[348458093,1736537433320,-560.64,0.00010269,2]
[348458095,1736537433333,-500.0,0.00010269,2]
[348458098,1736537433345,-500.0,0.00010269,2]
[348458100,1736537433357,-500.0,0.00010269,2]
[348458102,1736537433369,-512.1,0.00010269,2]
[348458104,1736537433382,-500.0,0.00010269,2]
[348458107,1736537433395,-500.0,0.00010269,2]
[348458109,1736537433408,-500.0,0.00010269,2]
[348458111,1736537433424,-500.0,0.00010269,2]
[348458114,1736537433436,-500.0,0.00010269,2]
[348458116,1736537433449,-500.0,0.00010269,2]
[348458118,1736537433461,-376.02437467,0.00010269,2]
[348458120,1736537433474,-500.0,0.00010269,2]
[348458123,1736537433487,-500.75054135,0.00010269,2]
[348458125,1736537433504,-500.0,0.00010269,2]
[348458127,1736537433516,-500.0,0.00010269,2]
[348458129,1736537433528,-500.0,0.00010269,2]
[348458132,1736537433540,-565.94694551,0.00010269,2]
[348458134,1736537433552,-500.0,0.00010269,2]
[348458136,1736537433564,-500.44863121,0.00010269,2]
[348458138,1736537433577,-500.0,0.00010269,2]
[348458141,1736537433589,-500.38425555,0.00010269,2]
[348458143,1736537433601,-500.0,0.00010269,2]
[348458145,1736537433614,-500.0,0.00010269,2]
[348458147,1736537433627,-500.41095643,0.00010269,2]
[348458150,1736537433640,-500.0,0.00010269,2]
[348458152,1736537433652,-782.15,0.00010269,2]
[348458154,1736537433665,-500.0,0.00010269,2]
[348458156,1736537433677,-500.0,0.00010269,2]
[348458159,1736537433690,-500.57132054,0.00010269,2]
[348458161,1736537433706,-500.0,0.00010269,2]
[348458163,1736537433718,-570.45412714,0.00010269,2]
[348458165,1736537433731,-500.0,0.00010269,2]
[348458168,1736537433744,-500.0,0.00010269,2]
[348458170,1736537433756,-500.0,0.00010269,2]
[348458172,1736537433769,-496.55287033,0.00010269,2]
[348458174,1736537433783,-500.0,0.00010269,2]
[348458176,1736537433795,-500.0,0.00010269,2]
[348458179,1736537433809,-500.0,0.00010269,2]
[348458181,1736537433822,-500.0,0.00010269,2]
[348458183,1736537433835,-500.0,0.00010269,2]
[348458186,1736537433847,-500.0,0.00010269,2]
[348458188,1736537433859,-500.25092334,0.00010269,2]
[348458190,1736537433871,-500.0,0.00010269,2]
[348458192,1736537433883,-500.0,0.00010269,2]
[348458194,1736537433896,-500.0,0.00010269,2]
[348458196,1736537433908,-607.64,0.00010269,2]
[348458199,1736537433920,-289.74907482,0.00010269,2]
[348458201,1736537433934,-500.0,0.00010269,2]
[348458203,1736537433946,-500.0,0.00010269,2]
[348458205,1736537433959,-500.0,0.00010269,2]
[348458208,1736537433972,-500.0,0.00010269,2]
[348458210,1736537433985,-478.59621757,0.00010269,2]
[348458212,1736537433997,-500.0,0.00010269,2]
[348458214,1736537434009,-500.0,0.00010269,2]
[348458217,1736537434022,-500.0,0.00010269,2]
[348458219,1736537434034,-614.23,0.00010269,2]
[348458221,1736537434047,-500.0,0.00010269,2]
[348458224,1736537434059,-500.0,0.00010269,2]
[348458226,1736537434072,-500.0,0.00010269,2]
[348458228,1736537434084,-500.0,0.00010269,2]
[348458231,1736537434098,-500.0,0.00010269,2]
[348458233,1736537434111,-500.0,0.00010269,2]
[348458235,1736537434122,-500.0,0.00010269,2]
[348458237,1736537434135,-500.0,0.00010269,2]
[348458239,1736537434147,-500.0,0.00010269,2]
[348458242,1736537434159,-500.0,0.00010269,2]
[348458244,1736537434171,-500.0,0.00010269,2]
[348458246,1736537434184,-500.0,0.00010269,2]
[348458248,1736537434196,-500.0,0.00010269,2]
[348458251,1736537434208,-500.0,0.00010269,2]
[348458253,1736537434220,-500.0,0.00010269,2]
[348458255,1736537434232,-566.54,0.00010269,2]
[348458257,1736537434244,-500.0,0.00010269,2]
[348458259,1736537434257,-500.0,0.00010269,2]
[348458262,1736537434269,-614.45,0.00010269,2]
[348458264,1736537434281,-500.0,0.00010269,2]
[348458266,1736537434295,-500.0,0.00010269,2]
[348458268,1736537434308,-500.0,0.00010269,2]
[348458270,1736537434320,-500.0,0.00010269,2]
[348458273,1736537434332,-500.0,0.00010269,2]
[348458275,1736537434343,-564.020936,0.00010269,2]
[348458277,1736537434354,-500.0,0.00010269,2]
[348458279,1736537434366,-500.0,0.00010269,2]
[348458281,1736537434377,-869.78,0.00010269,2]
[348458283,1736537434388,-303.46916836,0.00010269,2]
[348458286,1736537434400,-500.0,0.00010269,2]
[348458288,1736537434411,-500.0,0.00010269,2]
[348458290,1736537434422,-500.0,0.00010269,2]
[348458292,1736537434434,-500.0,0.00010269,2]
[348458294,1736537434446,-600.86,0.00010269,2]
[348458297,1736537434457,-516.616166,0.00010269,2]
[348458299,1736537434468,-500.0,0.00010269,2]
[348458301,1736537434480,-454.89388196,0.00010269,2]
[348458303,1736537434491,-500.0,0.00010269,2]
[348458305,1736537434502,-500.0,0.00010269,2]
[348458307,1736537434514,-500.0,0.00010269,2]
[348458309,1736537434525,-500.0,0.00010269,2]
[348458312,1736537434536,-500.0,0.00010269,2]
[348458314,1736537434547,-508.79,0.00010269,2]
[348458316,1736537434558,-500.0,0.00010269,2]
[348458318,1736537434569,-2596.22,0.00010269,2]
[348458320,1736537434580,-500.0,0.00010269,2]
[348458322,1736537434592,-581.64809109,0.00010269,2]
[348458325,1736537434603,-500.0,0.00010269,2]
[348458363,1736537434980,-500.53353175,0.00010269,2]
[348458367,1736537435004,-500.0,0.00010269,2]
[348458369,1736537435014,-500.0,0.00010269,2]
[348458371,1736537435024,-500.0,0.00010269,2]
[348458373,1736537435034,-500.0,0.00010269,2]
[348458375,1736537435044,-500.0,0.00010269,2]
[348458377,1736537435053,-500.0,0.00010269,2]
[348458379,1736537435063,-500.0,0.00010269,2]
[348458381,1736537435073,-500.0,0.00010269,2]
[348458383,1736537435082,-500.0,0.00010269,2]
[348458385,1736537435092,-359.7843226,0.00010269,2]
[348458387,1736537435105,-500.0,0.00010269,2]
[348458389,1736537435115,-500.0,0.00010269,2]
[348458391,1736537435125,-500.0,0.00010269,2]
[348458393,1736537435134,-500.0,0.00010269,2]
[348458395,1736537435144,-2347.56,0.00010269,2]
[348458397,1736537435154,-500.0,0.00010269,2]
[348458399,1736537435164,-500.0,0.00010269,2]
[348458401,1736537435173,-500.0,0.00010269,2]
[348458403,1736537435183,-500.0,0.00010269,2]
[348458405,1736537435194,-500.0,0.00010269,2]
[348458407,1736537435203,-500.0,0.00010269,2]
[348458409,1736537435213,-500.0,0.00010269,2]
[348458411,1736537435223,-540.18,0.00010269,2]
[348458413,1736537435233,-500.0,0.00010269,2]
[348458415,1736537435244,-500.0,0.00010269,2]
[348458417,1736537435254,-500.0,0.00010269,2]
[348458419,1736537435264,-500.0,0.00010269,2]
[348458421,1736537435273,-500.0,0.00010269,2]
[348458423,1736537435283,-500.0,0.00010269,2]
[348458425,1736537435292,-500.0,0.00010269,2]
[348458427,1736537435302,-500.0,0.00010269,2]
[348458429,1736537435312,-500.0,0.00010269,2]
[348458431,1736537435321,-500.0,0.00010269,2]
[348458433,1736537435331,-562.7471336,0.00010269,2]
[348458435,1736537435341,-500.0,0.00010269,2]
[348458437,1736537435352,-1005.9,0.00010269,2]
[348458439,1736537435361,-1644.03,0.00010269,2]
[348458441,1736537435371,-500.0,0.00010269,2]
[348458443,1736537435381,-867.9,0.00010269,2]
[348458445,1736537435390,-500.0,0.00010269,2]
[348458447,1736537435399,-500.0,0.00010269,2]
[348458449,1736537435408,-500.0,0.00010269,2]
[348458451,1736537435418,-500.0,0.00010269,2]
[348458453,1736537435428,-500.0,0.00010269,2]
[348458455,1736537435437,-1720.31,0.00010269,2]
[348458457,1736537435447,-576.06,0.00010269,2]
[348458459,1736537435456,-500.0,0.00010269,2]